fUST/lending_fUST_20240430
["ID","MTS","AMOUNT","RATE_DAILY","PERIOD"]
[324971312,1714480288522,-485.68973665,0.00034833,7]
[324971313,1714480288531,-26908.90743252,0.000349,2]
[324971314,1714480288541,-5916.15000564,0.00035,4]
[324971315,1714480288550,-854.20368441,0.00035,2]
[324971316,1714480288563,-5317.93219041,0.00035,4]
[324971317,1714480288572,-425.54851133,0.00035,10]
[324971318,1714480288581,-257.56423254,0.00035,4]
[324971319,1714480288590,-169.28788133,0.00035,30]
[324971320,1714480288599,-849.10028097,0.00035,30]
[324971321,1714480288608,-474.82426074,0.00035,30]
[324971322,1714480288617,-4999.999999,0.00035,14]
[324971323,1714480288627,-154.62751969,0.00035002,7]
[324971324,1714480288636,-156.96846278,0.00035026,7]
[324971325,1714480288646,-153.21482082,0.00035027,7]
[324971326,1714480288656,-999.19,0.00035068,7]
[324971327,1714480288666,-995.58,0.00035068,7]
[324971328,1714480288680,-513.93,0.00035068,7]
[324971329,1714480288689,-500.0,0.00035068,7]
[324971330,1714480288699,-500.0,0.00035068,7]
[324971331,1714480288708,-716.63,0.00035068,7]
[324971332,1714480288718,-300.0,0.00035068,7]
[324971333,1714480288727,-500.0,0.00035068,7]
[324971334,1714480288737,-500.0,0.00035068,7]
[324971335,1714480288746,-540.06781762,0.00035068,7]
[324971336,1714480288757,-500.0,0.00035068,7]
[324971337,1714480288767,-523.81,0.00035068,7]
[324971338,1714480288776,-890.43,0.00035068,7]
[324971339,1714480288786,-500.0,0.00035068,7]
[324971340,1714480288796,-500.0,0.00035068,7]
[324971341,1714480288805,-1768.07,0.00035068,7]
[324971342,1714480288821,-500.0,0.00035068,7]
[324971343,1714480288830,-1498.98,0.00035068,7]
[324971344,1714480288839,-539.13287213,0.00035068,7]
[324971345,1714480288848,-500.0,0.00035068,7]
[324971346,1714480288858,-882.34,0.00035068,7]
[324971347,1714480288867,-894.99,0.00035068,7]
[324971348,1714480288876,-599.82,0.00035068,7]
[324971349,1714480288885,-785.65,0.00035068,7]
[324971350,1714480288894,-500.0,0.00035068,7]
[324971351,1714480288904,-500.0,0.00035068,7]
[324971352,1714480288914,-559.33,0.00035068,7]
[324971353,1714480288924,-500.0,0.00035068,7]
[324971354,1714480288934,-500.0,0.00035068,7]
[324971355,1714480288944,-500.0,0.00035068,2]
[324971356,1714480288953,-1442.92,0.00035068,7]
[324971357,1714480288963,-500.0,0.00035068,7]
[324971358,1714480288972,-500.0,0.00035068,7]
[324971359,1714480288981,-500.0,0.00035068,7]
[324971360,1714480288991,-500.0,0.00035068,7]
[324971361,1714480289000,-728.48,0.00035068,7]
[324971362,1714480289010,-500.0,0.00035068,7]
[324971363,1714480289019,-500.0,0.00035068,7]
[324971364,1714480289028,-500.0,0.00035068,7]
[324971365,1714480289038,-554.17,0.00035068,7]
[324971366,1714480289048,-500.0,0.00035068,7]
[324971367,1714480289062,-672.86,0.00035068,7]
[324971368,1714480289071,-1006.99,0.00035068,7]
[324971369,1714480289081,-1748.77,0.00035068,7]
[324971370,1714480289090,-652.12,0.00035068,7]
[324971371,1714480289100,-570.84,0.00035068,7]
[324971372,1714480289110,-500.0,0.00035068,7]
[324971373,1714480289120,-1498.55,0.00035068,7]
[324971374,1714480289130,-500.0,0.00035068,7]
[324971375,1714480289140,-500.0,0.00035068,7]
[324971376,1714480289150,-344.2782891,0.00035068,7]
[324971377,1714480289159,-500.0,0.00035068,7]
[324971378,1714480289169,-500.0,0.00035068,7]
[324971379,1714480289179,-509.77,0.00035068,7]
[324971380,1714480289188,-500.0,0.00035068,7]
[324971381,1714480289296,-574.86,0.00035068,7]
[324971382,1714480289311,-652.87,0.00035068,7]
[324971383,1714480289321,-500.0,0.00035068,7]
[324971384,1714480289331,-638.59,0.00035068,7]
[324971385,1714480289340,-1324.85,0.00035068,7]
[324971386,1714480289350,-511.97,0.00035068,7]
[324971387,1714480289359,-1440.78,0.00035068,7]
[324971388,1714480289372,-598.74,0.00035068,7]
[324971389,1714480289384,-911.25,0.00035068,7]
[324971390,1714480289393,-500.0,0.00035068,7]
[324971391,1714480289403,-630.12,0.00035068,7]
[324971392,1714480289413,-1896.05,0.00035068,7]
[324971393,1714480289422,-903.11,0.00035068,7]
[324971394,1714480289432,-1752.96,0.00035068,7]
[324971395,1714480289442,-2770.12,0.00035068,7]
[324971396,1714480289450,-2114.85,0.00035068,7]
[324971397,1714480289460,-442.98107465,0.00035068,7]
[324971398,1714480289469,-500.0,0.00035068,7]
[324971399,1714480289479,-500.0,0.00035068,7]
[324971400,1714480289488,-657.48,0.00035068,7]
[324971401,1714480289502,-500.0,0.00035068,7]
[324971402,1714480289512,-500.0,0.00035068,7]
[324971403,1714480289521,-577.33,0.00035068,7]
[324971404,1714480289531,-594.83,0.00035068,7]
[324971405,1714480289540,-527.95,0.00035068,7]
[324971406,1714480289549,-937.55,0.00035068,7]
[324971407,1714480289561,-1269.88,0.00035068,7]
[324971408,1714480289571,-500.0,0.00035068,7]
[324971409,1714480289580,-846.37,0.00035068,7]
[324971410,1714480289590,-500.0,0.00035068,7]
[324971411,1714480289600,-1025.5,0.00035068,7]
[324971412,1714480289609,-8014.06,0.00035068,7]
[324971413,1714480289619,-2622.44,0.00035068,7]
[324971414,1714480289628,-500.0,0.00035068,7]
[324971415,1714480289638,-685.27,0.00035068,7]
[324971416,1714480289648,-804.08,0.00035068,7]
[324971417,1714480289657,-532.84,0.00035068,7]
[324971418,1714480289669,-1006.5,0.00035068,7]
[324971419,1714480289682,-1897.04,0.00035068,7]
[324971420,1714480289691,-560.38,0.00035068,7]
[324971421,1714480289701,-603.01,0.00035068,7]
[324971422,1714480289712,-500.0,0.00035068,7]
[324971423,1714480289721,-530.17,0.00035068,7]
[324971424,1714480289731,-921.22,0.00035068,7]
[324971425,1714480289740,-513.6,0.00035068,7]
[324971426,1714480289751,-928.29,0.00035068,7]
[324971427,1714480289761,-500.0,0.00035068,7]
[324971428,1714480289772,-500.0,0.00035068,7]
[324971429,1714480289781,-3236.72,0.00035068,7]
[324971430,1714480289790,-505.64,0.00035068,7]
[324971431,1714480289799,-1780.15,0.00035068,7]
[324971432,1714480289809,-500.0,0.00035068,7]
[324971433,1714480289819,-298.06181738,0.00035068,7]
[324971434,1714480289828,-577.75,0.00035068,7]
[324971435,1714480289837,-500.0,0.00035068,7]
[324971436,1714480289847,-1137.4,0.00035068,7]
[324971437,1714480289856,-933.38,0.00035068,7]
[324971438,1714480289865,-500.0,0.00035068,7]
[324971439,1714480289875,-500.0,0.00035068,7]
[324971440,1714480289884,-1628.49,0.00035068,7]
[324971441,1714480289893,-556.41,0.00035068,7]
[324971442,1714480289903,-3242.44,0.00035068,7]
[324971443,1714480289913,-611.4,0.00035068,7]
[324971444,1714480289922,-500.0,0.00035068,7]
[324971445,1714480289932,-500.0,0.00035068,7]
[324971446,1714480289941,-2127.99,0.00035068,7]
[324971447,1714480289951,-507.76541071,0.00035068,7]
[324971448,1714480289960,-799.99,0.00035068,7]
[324971449,1714480289970,-1320.84,0.00035068,7]
[324971450,1714480289979,-500.0,0.00035068,7]
[324971451,1714480289989,-518.31,0.00035068,7]
[324971452,1714480289998,-500.0,0.00035068,7]
[324971453,1714480290008,-1525.02,0.00035068,7]
[324971454,1714480290018,-654.2,0.00035068,7]
[324971455,1714480290027,-545.68,0.00035068,7]
[324971456,1714480290037,-1273.96,0.00035068,7]
[324971457,1714480290047,-1761.83,0.00035068,7]
[324971458,1714480290057,-639.64,0.00035068,7]
[324971459,1714480290070,-500.0,0.00035068,7]
[324971460,1714480290080,-500.0,0.00035068,7]
[324971461,1714480290089,-555.04,0.00035068,7]
[324971462,1714480290098,-1774.44,0.00035068,7]
[324971463,1714480290108,-1354.57,0.00035068,7]
[324971464,1714480290118,-3447.14,0.00035068,7]
[324971465,1714480290127,-786.77,0.00035068,7]
[324971466,1714480290137,-707.6,0.00035068,7]
[324971467,1714480290146,-569.7,0.00035068,7]
[324971468,1714480290156,-500.0,0.00035068,7]
[324971469,1714480290166,-751.5,0.00035068,7]
[324971470,1714480290176,-500.0,0.00035068,7]
[324971471,1714480290186,-500.0,0.00035068,7]
[324971472,1714480290195,-500.0,0.00035068,30]
[324971473,1714480290205,-1391.74,0.00035068,7]
[324971474,1714480290215,-1469.45,0.00035068,7]
[324971475,1714480290225,-500.0,0.00035068,7]
[324971476,1714480290235,-377.57551544,0.00035068,7]
[324971477,1714480290245,-485.68973665,0.00035071,7]
[324971478,1714480290255,-153.21482082,0.00035198,7]
[324971479,1714480290265,-154.62751969,0.00035232,7]
[324971480,1714480290274,-200.0,0.0003525,120]
[324971481,1714480290284,-485.68973665,0.0003527,7]
[324971482,1714480290294,-535.0,0.0003528,35]
[324971483,1714480290303,-535.0,0.0003529,35]
[324971484,1714480290315,-999.19,0.00035342,7]
[324971485,1714480290324,-995.58,0.00035342,7]
[324971486,1714480290334,-513.93,0.00035342,7]
[324971487,1714480290343,-477.76086263,0.00035342,7]
[324971488,1714480290352,-500.89672697,0.00035342,7]
[324971489,1714480290361,-716.63,0.00035342,7]
[324971490,1714480290371,-300.0,0.00035342,7]
[324971491,1714480290381,-500.0,0.00035342,7]
[324971492,1714480290390,-533.97831515,0.00035342,7]
[324971493,1714480290400,-500.0,0.00035342,7]
[324971494,1714480290409,-523.81,0.00035342,7]
[324971495,1714480290418,-890.43,0.00035342,7]
[324971496,1714480290427,-461.06987023,0.00035342,7]
[324971497,1714480290437,-500.0,0.00035342,7]
[324971498,1714480290446,-1768.07,0.00035342,7]
[324971499,1714480290456,-500.0,0.00035342,7]
[324971500,1714480290466,-1498.98,0.00035342,7]
[324971501,1714480290476,-500.0,0.00035342,7]
[324971502,1714480290486,-882.34,0.00035342,7]
[324971503,1714480290496,-894.99,0.00035342,7]
[324971504,1714480290506,-599.82,0.00035342,7]
[324971505,1714480290515,-785.65,0.00035342,7]
[324971506,1714480290524,-500.0,0.00035342,7]
[324971507,1714480290534,-500.0,0.00035342,7]
[324971508,1714480290544,-559.33,0.00035342,7]
[324971509,1714480290553,-500.0,0.00035342,7]
[324971510,1714480290566,-356.6360745,0.00035342,7]
[324971511,1714480290576,-500.0,0.00035342,2]
[324971512,1714480290586,-1442.92,0.00035342,7]
[324971513,1714480290595,-500.0,0.00035342,7]
[324971514,1714480290605,-500.0,0.00035342,7]
[324971515,1714480290615,-500.0,0.00035342,7]
[324971516,1714480290624,-500.0,0.00035342,7]
[324971517,1714480290633,-728.48,0.00035342,7]
[324971518,1714480290643,-500.0,0.00035342,7]
[324971519,1714480290652,-500.0,0.00035342,7]
[324971520,1714480290664,-500.0,0.00035342,7]
[324971521,1714480290675,-554.17,0.00035342,7]
[324971522,1714480290685,-481.27021067,0.00035342,7]
[324971523,1714480290695,-672.86,0.00035342,7]
[324971524,1714480290707,-1006.99,0.00035342,7]
[324971525,1714480290716,-1748.77,0.00035342,7]
[324971526,1714480290725,-652.12,0.00035342,7]
[324971527,1714480290735,-570.84,0.00035342,7]
[324971528,1714480290745,-500.0,0.00035342,7]
[324971529,1714480290756,-1498.55,0.00035342,7]
[324971530,1714480290765,-500.0,0.00035342,7]
[324971531,1714480290775,-500.0,0.00035342,7]
[324971532,1714480290784,-500.0,0.00035342,7]
[324971533,1714480290793,-500.0,0.00035342,7]
[324971534,1714480290803,-509.77,0.00035342,7]
[324971535,1714480290813,-500.0,0.00035342,7]
[324971536,1714480290822,-574.86,0.00035342,7]
[324971537,1714480290831,-652.87,0.00035342,7]
[324971538,1714480290841,-500.0,0.00035342,7]
[324971539,1714480290850,-638.59,0.00035342,7]
[324971540,1714480290859,-1324.85,0.00035342,7]
[324971541,1714480290868,-511.97,0.00035342,7]
[324971542,1714480290878,-1440.78,0.00035342,7]
[324971543,1714480290888,-598.74,0.00035342,7]
[324971544,1714480290898,-911.25,0.00035342,7]
[324971545,1714480290908,-363.46819856,0.00035342,7]
[324971546,1714480290917,-630.12,0.00035342,7]
[324971547,1714480290927,-1896.05,0.00035342,7]
[324971548,1714480290936,-903.11,0.00035342,7]
[324971549,1714480290947,-1752.96,0.00035342,7]
[324971550,1714480290956,-2770.12,0.00035342,7]
[324971551,1714480290966,-2114.85,0.00035342,7]
[324971552,1714480290976,-500.0,0.00035342,7]
[324971553,1714480290985,-500.0,0.00035342,7]
[324971554,1714480290994,-657.48,0.00035342,7]
[324971555,1714480291003,-500.0,0.00035342,7]
[324971556,1714480291013,-500.0,0.00035342,7]
[324971557,1714480291024,-577.33,0.00035342,7]
[324971558,1714480291034,-594.83,0.00035342,7]
[324971559,1714480291044,-527.95,0.00035342,7]
[324971560,1714480291054,-937.55,0.00035342,7]
[324971561,1714480291064,-1269.88,0.00035342,7]
[324971562,1714480291074,-500.0,0.00035342,7]
[324971563,1714480291084,-846.37,0.00035342,7]
[324971564,1714480291095,-500.0,0.00035342,7]
[324971565,1714480291104,-1025.5,0.00035342,7]
[324971566,1714480291114,-8014.06,0.00035342,7]
[324971567,1714480291124,-2622.44,0.00035342,7]
[324971568,1714480291133,-500.0,0.00035342,7]
[324971569,1714480291143,-685.27,0.00035342,7]
[324971570,1714480291256,-804.08,0.00035342,7]
[324971571,1714480291266,-532.84,0.00035342,7]
[324971572,1714480291275,-1897.04,0.00035342,7]
[324971573,1714480291285,-1006.5,0.00035342,7]
[324971574,1714480291295,-560.38,0.00035342,7]
[324971575,1714480291305,-603.01,0.00035342,7]
[324971576,1714480291316,-500.0,0.00035342,7]
[324971577,1714480291326,-530.17,0.00035342,7]
[324971578,1714480291336,-921.22,0.00035342,7]
[324971579,1714480291345,-513.6,0.00035342,7]
[324971580,1714480291355,-928.29,0.00035342,7]
[324971581,1714480291364,-500.0,0.00035342,7]
[324971582,1714480291373,-500.0,0.00035342,7]
[324971583,1714480291382,-3236.72,0.00035342,7]
[324971584,1714480291391,-505.64,0.00035342,7]
[324971585,1714480291401,-1780.15,0.00035342,7]
[324971586,1714480291410,-500.0,0.00035342,7]
[324971587,1714480291420,-577.75,0.00035342,7]
[324971588,1714480291430,-500.0,0.00035342,7]
[324971589,1714480291439,-1137.4,0.00035342,7]
[324971590,1714480291449,-500.0,0.00035342,7]
[324971591,1714480291459,-933.38,0.00035342,7]
[324971592,1714480291468,-500.0,0.00035342,7]
[324971593,1714480291478,-1628.49,0.00035342,7]
[324971594,1714480291487,-556.41,0.00035342,7]
[324971595,1714480291497,-3242.44,0.00035342,7]
[324971596,1714480291507,-611.4,0.00035342,7]
[324971597,1714480291516,-499.0,0.00035342,7]
[324971598,1714480291526,-500.0,0.00035342,7]
[324971599,1714480291536,-2127.99,0.00035342,7]
[324971600,1714480291545,-799.99,0.00035342,7]
[324971601,1714480291554,-1320.84,0.00035342,7]
[324971602,1714480291565,-500.0,0.00035342,7]
[324971603,1714480291575,-518.31,0.00035342,7]
[324971604,1714480291585,-500.0,0.00035342,7]
[324971605,1714480291594,-1525.02,0.00035342,7]
[324971606,1714480291604,-654.2,0.00035342,7]
[324971607,1714480291613,-545.68,0.00035342,7]
[324971608,1714480291623,-1273.96,0.00035342,7]
[324971609,1714480291632,-1761.83,0.00035342,7]
[324971610,1714480291641,-639.64,0.00035342,7]
[324971611,1714480291651,-500.0,0.00035342,7]
[324971612,1714480291660,-500.0,0.00035342,7]
[324971613,1714480291671,-555.04,0.00035342,7]
[324971614,1714480291681,-1774.44,0.00035342,7]
[324971615,1714480291690,-1354.57,0.00035342,7]
[324971616,1714480291700,-3447.14,0.00035342,7]
[324971617,1714480291710,-786.77,0.00035342,7]
[324971618,1714480291720,-707.6,0.00035342,7]
[324971619,1714480291730,-569.7,0.00035342,7]
[324971620,1714480291740,-500.0,0.00035342,7]
[324971621,1714480291756,-751.5,0.00035342,7]
[324971622,1714480291767,-500.0,0.00035342,7]
[324971623,1714480291777,-500.0,0.00035342,7]
[324971624,1714480291787,-500.0,0.00035342,30]
[324971625,1714480291797,-1391.74,0.00035342,7]
[324971626,1714480291807,-1469.45,0.00035342,7]
[324971627,1714480291818,-500.0,0.00035342,7]
[324971628,1714480291828,-152.79752244,0.00035391,7]
[324971629,1714480291837,-154.62751969,0.00035435,7]
[324971630,1714480291847,-153.21482082,0.00035523,7]
[324971631,1714480291855,-575.0,0.000356,9]
[324971632,1714480291864,-999.19,0.00035616,7]
[324971633,1714480291873,-995.58,0.00035616,7]
[324971634,1714480291883,-513.93,0.00035616,7]
[324971635,1714480291892,-716.63,0.00035616,7]
[324971636,1714480291902,-300.0,0.00035616,7]
[324971637,1714480291911,-500.0,0.00035616,7]
[324971638,1714480291920,-500.0,0.00035616,7]
[324971639,1714480291930,-523.81,0.00035616,7]
[324971640,1714480291940,-890.43,0.00035616,7]
[324971641,1714480291949,-500.0,0.00035616,7]
[324971642,1714480291959,-1768.07,0.00035616,7]
[324971643,1714480291968,-500.0,0.00035616,7]
[324971644,1714480291977,-1498.98,0.00035616,7]
[324971645,1714480291987,-500.0,0.00035616,7]
[324971646,1714480291996,-882.34,0.00035616,7]
[324971647,1714480292005,-894.99,0.00035616,7]
[324971648,1714480292014,-599.82,0.00035616,7]
[324971649,1714480292023,-785.65,0.00035616,7]
[324971650,1714480292032,-500.0,0.00035616,7]
[324971651,1714480292042,-500.0,0.00035616,7]
[324971652,1714480292051,-559.33,0.00035616,7]
[324971653,1714480292061,-500.0,0.00035616,7]
[324971654,1714480292071,-500.0,0.00035616,2]
[324971655,1714480292080,-1442.92,0.00035616,7]
[324971656,1714480292090,-500.0,0.00035616,7]
[324971657,1714480292099,-500.0,0.00035616,7]
[324971658,1714480292108,-500.0,0.00035616,7]
[324971659,1714480292118,-500.0,0.00035616,7]
[324971660,1714480292127,-728.48,0.00035616,7]
[324971661,1714480292136,-596.62480779,0.00035616,7]
[324971662,1714480292146,-500.0,0.00035616,7]
[324971663,1714480292155,-197.31769286,0.00035616,7]
[324971664,1714480292165,-554.17,0.00035616,7]
[324971665,1714480292175,-672.86,0.00035616,7]
[324971666,1714480292184,-1006.99,0.00035616,7]
[324971667,1714480292194,-1748.77,0.00035616,7]
[324971668,1714480292203,-652.12,0.00035616,7]
[324971669,1714480292213,-570.84,0.00035616,7]
[324971670,1714480292223,-500.0,0.00035616,7]
[324971671,1714480292232,-1498.55,0.00035616,7]
[324971672,1714480292242,-500.0,0.00035616,7]
[324971673,1714480292251,-500.0,0.00035616,7]
[324971674,1714480292261,-500.0,0.00035616,7]
[324971675,1714480292270,-500.0,0.00035616,7]
[324971676,1714480292279,-509.77,0.00035616,7]
[324971677,1714480292289,-500.0,0.00035616,7]
[324971678,1714480292299,-574.86,0.00035616,7]
[324971679,1714480292309,-652.87,0.00035616,7]
[324971680,1714480292321,-500.0,0.00035616,7]
[324971681,1714480292331,-638.59,0.00035616,7]
[324971682,1714480292340,-1324.85,0.00035616,7]
[324971683,1714480292350,-511.97,0.00035616,7]
[324971684,1714480292360,-1440.78,0.00035616,7]
[324971685,1714480292369,-598.74,0.00035616,7]
[324971686,1714480292379,-911.25,0.00035616,7]
[324971687,1714480292389,-630.12,0.00035616,7]
[324971688,1714480292399,-1896.05,0.00035616,7]
[324971689,1714480292408,-903.11,0.00035616,7]
[324971690,1714480292418,-1752.96,0.00035616,7]
[324971691,1714480292428,-2770.12,0.00035616,7]
[324971692,1714480292437,-2114.85,0.00035616,7]
[324971693,1714480292446,-500.0,0.00035616,7]
[324971694,1714480292456,-434.19811263,0.00035616,7]
[324971695,1714480292465,-657.48,0.00035616,7]
[324971696,1714480292474,-500.0,0.00035616,7]
[324971697,1714480292484,-500.0,0.00035616,7]
[324971698,1714480292493,-577.33,0.00035616,7]
[324971699,1714480292502,-594.83,0.00035616,7]
[324971700,1714480292511,-527.95,0.00035616,7]
[324971701,1714480292520,-937.55,0.00035616,7]
[324971702,1714480292530,-1269.88,0.00035616,7]
[324971703,1714480292539,-500.0,0.00035616,7]
[324971704,1714480292549,-846.37,0.00035616,7]
[324971705,1714480292559,-500.0,0.00035616,7]
[324971706,1714480292571,-1025.5,0.00035616,7]
[324971707,1714480292581,-8014.06,0.00035616,7]
[324971708,1714480292590,-2622.44,0.00035616,7]
[324971709,1714480292600,-500.0,0.00035616,7]
[324971710,1714480292610,-567.30408737,0.00035616,15]
[324971711,1714480292620,-685.27,0.00035616,7]
[324971712,1714480292629,-804.08,0.00035616,7]
[324971713,1714480292639,-532.84,0.00035616,7]
[324971714,1714480292648,-1897.04,0.00035616,7]
[324971715,1714480292657,-1006.5,0.00035616,7]
[324971716,1714480292673,-560.38,0.00035616,7]
[324971717,1714480292683,-500.0,0.00035616,7]
[324971718,1714480292693,-603.01,0.00035616,7]
[324971719,1714480292703,-530.17,0.00035616,7]
[324971720,1714480292713,-921.22,0.00035616,7]
[324971721,1714480292722,-513.6,0.00035616,7]
[324971722,1714480292732,-928.29,0.00035616,7]
[324971723,1714480292743,-500.0,0.00035616,7]
[324971724,1714480292753,-500.0,0.00035616,7]
[324971725,1714480292763,-3236.72,0.00035616,7]
[324971726,1714480292773,-505.64,0.00035616,7]
[324971727,1714480292783,-1780.15,0.00035616,7]
[324971728,1714480292793,-500.0,0.00035616,7]
[324971729,1714480292803,-577.75,0.00035616,7]
[324971730,1714480292814,-500.0,0.00035616,7]
[324971731,1714480292824,-1137.4,0.00035616,7]
[324971732,1714480292834,-500.0,0.00035616,7]
[324971733,1714480292844,-933.38,0.00035616,7]
[324971734,1714480292853,-500.0,0.00035616,7]
[324971735,1714480292863,-1628.49,0.00035616,7]
[324971736,1714480292873,-556.41,0.00035616,7]
[324971737,1714480292882,-3242.44,0.00035616,7]
[324971738,1714480292892,-611.4,0.00035616,7]
[324971739,1714480292901,-500.0,0.00035616,7]
[324971740,1714480292911,-2127.99,0.00035616,7]
[324971741,1714480292920,-799.99,0.00035616,7]
[324971742,1714480292930,-1320.84,0.00035616,7]
[324971743,1714480293031,-500.0,0.00035616,7]
[324971744,1714480293042,-518.31,0.00035616,7]
[324971745,1714480293052,-500.0,0.00035616,7]
[324971746,1714480293061,-1525.02,0.00035616,7]
[324971747,1714480293075,-654.2,0.00035616,7]
[324971748,1714480293084,-545.68,0.00035616,7]
[324971749,1714480293094,-1273.96,0.00035616,7]
[324971750,1714480293103,-1761.83,0.00035616,7]
[324971751,1714480293113,-639.64,0.00035616,7]
[324971752,1714480293122,-500.0,0.00035616,7]
[324971753,1714480293131,-500.0,0.00035616,7]
[324971754,1714480293141,-555.04,0.00035616,7]
[324971755,1714480293151,-1774.44,0.00035616,7]
[324971756,1714480293161,-1354.57,0.00035616,7]
[324971757,1714480293170,-3447.14,0.00035616,7]
[324971758,1714480293179,-786.77,0.00035616,7]
[324971759,1714480293189,-707.6,0.00035616,7]
[324971760,1714480293199,-569.7,0.00035616,7]
[324971761,1714480293208,-500.0,0.00035616,7]
[324971762,1714480293218,-751.5,0.00035616,7]
[324971763,1714480293227,-500.0,0.00035616,7]
[324971764,1714480293236,-500.0,0.00035616,7]
[324971765,1714480293246,-500.0,0.00035616,30]
[324971766,1714480293255,-1391.74,0.00035616,7]
[324971767,1714480293264,-1469.45,0.00035616,7]
[324971768,1714480293273,-500.0,0.00035616,7]
[324971769,1714480293282,-1776.383813,0.00035616,120]
[324971770,1714480293292,-37549.56,0.00035616,3]
[324971771,1714480293301,-500.0,0.0003564,5]
[324971772,1714480293311,-485.68973665,0.00035646,7]
[324971773,1714480293325,-1255.4,0.0003568,7]
[324971774,1714480293334,-485.68973665,0.00035749,7]
[324971775,1714480293343,-154.78330338,0.0003589,2]
[324971776,1714480293352,-999.19,0.0003589,7]
[324971777,1714480293361,-995.58,0.0003589,7]
[324971778,1714480293370,-513.93,0.0003589,7]
[324971779,1714480293379,-716.63,0.0003589,7]
[324971780,1714480293389,-285.08228723,0.0003589,7]
[324971781,1714480293398,-500.0,0.0003589,7]
[324971782,1714480293407,-500.0,0.0003589,7]
[324971783,1714480293416,-523.81,0.0003589,7]
[324971784,1714480293425,-890.43,0.0003589,7]
[324971785,1714480293435,-500.0,0.0003589,7]
[324971786,1714480293444,-1768.07,0.0003589,7]
[324971787,1714480293453,-500.0,0.0003589,7]
[324971788,1714480293463,-1498.98,0.0003589,7]
[324971789,1714480293472,-500.0,0.0003589,7]
[324971790,1714480293482,-882.34,0.0003589,7]
[324971791,1714480293491,-894.99,0.0003589,7]
[324971792,1714480293501,-599.82,0.0003589,7]
[324971793,1714480293510,-785.65,0.0003589,7]
[324971794,1714480293519,-500.0,0.0003589,7]
[324971795,1714480293529,-500.0,0.0003589,7]
[324971796,1714480293539,-559.33,0.0003589,7]
[324971797,1714480293548,-500.0,0.0003589,7]
[324971798,1714480293557,-500.0,0.0003589,2]
[324971799,1714480293569,-1442.92,0.0003589,7]
[324971800,1714480293579,-500.0,0.0003589,7]
[324971801,1714480293588,-640.44437509,0.0003589,7]
[324971802,1714480293597,-500.0,0.0003589,7]
[324971803,1714480293606,-500.0,0.0003589,7]
[324971804,1714480293616,-728.48,0.0003589,7]
[324971805,1714480293626,-500.0,0.0003589,7]
[324971806,1714480293635,-554.17,0.0003589,7]
[324971807,1714480293644,-672.86,0.0003589,7]
[324971808,1714480293654,-1006.99,0.0003589,7]
[324971809,1714480293664,-1748.77,0.0003589,7]
[324971810,1714480293676,-652.12,0.0003589,7]
[324971811,1714480293687,-570.84,0.0003589,7]